[Event "Asian Continental-ch Open 2019"]
[Site "XingTai"]
[Date "2019.06.14"]
[Round "8.15"]
[White "Akash G"]
[Black "Erigaisi Arjun"]
[Result "0-1"]
[ECO "B90"]
[WhiteElo "2404"]
[BlackElo "2526"]
[Annotator "ChessBase"]
[PlyCount "156"]
[EventDate "2019.06.06"]
[EventType "swiss"]
[EventCountry "CHN"]
[SourceTitle "playchess.com"]
[Source "ChessBase"]
[SourceQuality "1"]
[TimeControl "40/5400+30:1800+30"]

1. e4 {[%emt 0:01:56]} c5 {[%emt 0:00:00]} 2. Nf3 {[%emt 0:00:19]} d6 {[%emt 0:00:00]} 3. d4 {[%emt 0:00:06]} cxd4 {[%emt 0:00:00]} 4. Nxd4 {[%emt 0:00:06]} Nf6 {[%emt 0:00:04]} 5. Nc3 {[%emt 0:00:14]} a6 {[%emt 0:00:06]} 6. h3 {[%emt 0:00:36]} e5 {[%emt 0:00:10]} 7. Nde2 {[%emt 0:00:39]} h5 {[%emt 0:00:07]} 8. g3 {[%emt 0:00:44]} Be6 {[%emt 0:00:49]} 9. Bg2 {[%emt 0:00:42]} Nbd7 {[%emt 0:00:10]} 10. a4 {[%emt 0:00:43]} Rc8 {[%emt 0:01:03]} 11. Bg5 {[%emt 0:05:11]} Be7 {[%emt 0:04:41]} 12. O-O {[%emt 0:01:12]} Bc4 {[%emt 0:09:27]} 13. b3 {[%emt 0:05:29]} Bxe2 {[%emt 0:00:13]} 14. Nxe2 {[%emt 0:00:08]} b5 {[%emt 0:00:15]} 15. axb5 {[%emt 0:12:06]} axb5 {[%emt 0:00:12]} 16. Qd3 {[%emt 0:00:10]} Qb6 {[%emt 0:01:06]} 17. b4 {[%emt 0:03:00]} O-O {[%emt 0:05:49]} 18. c3 {[%emt 0:06:02]} Rc4 {[%emt 0:14:19]} 19. g4 {[%emt 0:10:31]} hxg4 {[%emt 0:08:28]} 20. hxg4 {[%emt 0:00:08]} Rfc8 {[%emt 0:03:59]} 21. Be3 {[%emt 0:10:28]} Qc6 {[%emt 0:04:39]} 22. f3 {[%emt 0:01:01]} d5 {[%emt 0:18:11]} 23. g5 {[%emt 0:05:48]} dxe4 {[%emt 0:01:10]} 24. fxe4 {[%emt 0:00:08]} Nh7 {[%emt 0:03:43]} 25. Ra7 {[%emt 0:10:43]} Rd8 {[%emt 0:00:49]} 26. g6 {[%emt 0:00:10]} fxg6 {[%emt 0:00:09]} 27. Qd5+ {[%emt 0:00:56]} Qxd5 {[%emt 0:00:08]} 28. exd5 {[%emt 0:00:03]} Bg5 {[%emt 0:00:48]} 29. Bxg5 {[%emt 0:05:55]} Nxg5 {[%emt 0:00:07]} 30. Rb7 {[%emt 0:00:25]} e4 {[%emt 0:04:46]} 31. Rxb5 {[%emt 0:04:29]} Ne5 {[%emt 0:00:18]} 32. Ra1 {[%emt 0:06:53]} Ngf3+ {[%emt 0:12:57]} 33. Kf2 {[%emt 0:00:16]} Rf8 {[%emt 0:00:48]} 34. Kg3 {[%emt 0:06:03]} e3 {[%emt 0:00:15]} 35. Nd4 {[%emt 0:02:07]} Rxd4 {[%emt 0:02:24]} 36. cxd4 {[%emt 0:00:34]} Nxd4 {[%emt 0:00:05]} 37. Rba5 {[%emt 0:01:30]} Ne2+ {[%emt 0:01:52]} 38. Kh3 {[%emt 0:00:38]} Rf5 {[%emt 0:01:04]} 39. Ra8+ {[%emt 0:00:40]} Kh7 {[%emt 0:00:11]} 40. Be4 {[%emt 0:00:00]} Rh5+ {[%emt 0:00:00]} 41. Kg2 {[%emt 0:03:01]} Rg5+ {[%emt 0:03:18]} 42. Kh2 {[%emt 0:05:11]} Ng4+ {[%emt 0:04:37]} 43. Kg2 {[%emt 0:00:28]} Ne5+ {[%emt 0:00:05]} 44. Kh2 {[%emt 0:00:05]} Rg3 {[%emt 0:01:24]} 45. Rf8 {[%emt 0:10:10]} Ng4+ {[%emt 0:04:39]} 46. Kh1 {[%emt 0:00:10]} Nf2+ {[%emt 0:00:15]} 47. Kh2 {[%emt 0:06:21]} Nxe4 {[%emt 0:04:52]} 48. d6 {[%emt 0:00:40]} Nxd6 {[%emt 0:01:47]} 49. Re1 {[%emt 0:01:42]} Rg4 {[%emt 0:00:20]} 50. Rxe2 {[%emt 0:00:55]} Nf5 {[%emt 0:00:08]} 51. Re8 {[%emt 0:02:55]} Rxb4 {[%emt 0:01:49]} 52. R8xe3 {[%emt 0:00:37]} Nxe3 {[%emt 0:00:07]} 53. Rxe3 {[%emt 0:00:03]} g5 {[%emt 0:00:16]} 54. Re6 {[%emt 0:00:21]} Rf4 {[%emt 0:00:19]} 55. Kg3 {[%emt 0:00:24]} Rf6 {[%emt 0:00:08]} 56. Re5 {[%emt 0:00:35]} Kg6 {[%emt 0:00:09]} 57. Ra5 {[%emt 0:00:05]} Rb6 {[%emt 0:00:08]} 58. Ra7 {[%emt 0:00:23]} Rf6 {[%emt 0:01:06]} 59. Rb7 {[%emt 0:00:34]} Rf7 {[%emt 0:00:12]} 60. Rb3 {[%emt 0:01:09]} Kh5 {[%emt 0:01:07]} 61. Ra3 {[%emt 0:00:08]} g6 {[%emt 0:00:58]} 62. Ra8 {[%emt 0:00:42]} g4 {[%emt 0:00:07]} 63. Rb8 {[%emt 0:02:07]} Rf3+ {[%emt 0:00:20]} 64. Kg2 {[%emt 0:00:05]} Kh4 {[%emt 0:00:17]} 65. Rh8+ {[%emt 0:00:10]} Kg5 {[%emt 0:00:05]} 66. Ra8 {[%emt 0:00:26]} Re3 {[%emt 0:00:45]} 67. Ra2 {[%emt 0:00:40]} Kh4 {[%emt 0:00:54]} 68. Rb2 {[%emt 0:00:30]} Re4 {[%emt 0:00:26]} 69. Ra2 {[%emt 0:00:31]} g5 {[%emt 0:00:20]} 70. Rb2 {[%emt 0:00:36]} g3 {[%emt 0:00:09]} 71. Ra2 {[%emt 0:00:47]} Rf4 {[%emt 0:00:23]} 72. Ra1 {[%emt 0:00:55]} Rf2+ {[%emt 0:00:09]} 73. Kg1 {[%emt 0:00:13]} Rb2 {[%emt 0:00:08]} 74. Rc1 {[%emt 0:00:49]} Kh3 {[%emt 0:00:11]} 75. Ra1 {[%emt 0:01:09]} g4 {[%emt 0:00:23]} 76. Rc1 {[%emt 0:00:16]} Rb3 {[%emt 0:00:05]} 77. Kh1 {[%emt 0:03:05]} g2+ {[%emt 0:00:10]} 78. Kg1 {[%emt 0:00:05]} Rf3 {[%emt 0:00:04]} 0-1

[Event "Asian Continental-ch Open 2019"]
[Site "XingTai"]
[Date "2019.06.14"]
[Round "8.16"]
[White "Karthik Venkataraman"]
[Black "Xu, Yi"]
[Result "1/2-1/2"]
[ECO "E20"]
[WhiteElo "2499"]
[BlackElo "2526"]
[Annotator "ChessBase"]
[PlyCount "65"]
[EventDate "2019.06.06"]
[EventType "swiss"]
[EventCountry "CHN"]
[SourceTitle "playchess.com"]
[Source "ChessBase"]
[SourceQuality "1"]
[TimeControl "40/5400+30:1800+30"]

1. d4 {[%emt 0:00:00]} Nf6 {[%emt 0:00:00]} 2. c4 {[%emt 0:00:00]} e6 {[%emt 0:00:00]} 3. Nf3 {[%emt 0:00:00]} d5 {[%emt 0:00:00]} 4. Nc3 {[%emt 0:00:00]} Bb4 {[%emt 0:00:00]} 5. g3 {[%emt 0:00:34]} dxc4 {[%emt 0:00:27]} 6. Bg2 {[%emt 0:00:07]} O-O {[%emt 0:00:06]} 7. O-O {[%emt 0:00:07]} Nc6 {[%emt 0:00:37]} 8. Qa4 {[%emt 0:00:06]} Bd7 {[%emt 0:02:26]} 9. Ne5 {[%emt 0:01:49]} Bxc3 {[%emt 0:07:12]} 10. Nxd7 {[%emt 0:03:40]} Nxd7 {[%emt 0:03:34]} 11. bxc3 {[%emt 0:00:10]} Nb6 {[%emt 0:00:11]} 12. Qb5 {[%emt 0:10:12]} a6 {[%emt 0:07:21]} 13. Qc5 {[%emt 0:01:28]} Qd6 {[%emt 0:02:12]} 14. Qxd6 {[%emt 0:02:16]} cxd6 {[%emt 0:00:12]} 15. Rb1 {[%emt 0:00:08]} Nd5 {[%emt 0:10:54]} 16. Rxb7 {[%emt 0:10:05]} Rab8 {[%emt 0:00:43]} 17. Rxb8 {[%emt 0:04:10]} Rxb8 {[%emt 0:00:08]} 18. Ba3 {[%emt 0:01:08]} f5 {[%emt 0:01:25]} 19. Rc1 {[%emt 0:01:15]} Rb6 {[%emt 0:12:53]} 20. Bxd6 {[%emt 0:23:28]} Nxc3 {[%emt 0:06:34]} 21. Rxc3 {[%emt 0:00:06]} Nxd4 {[%emt 0:00:05]} 22. Rxc4 {[%emt 0:00:04]} Rxd6 {[%emt 0:00:14]} 23. e3 {[%emt 0:00:07]} Nb5 {[%emt 0:00:31]} 24. Bf3 {[%emt 0:01:39]} Rb6 {[%emt 0:04:55]} 25. a4 {[%emt 0:06:06]} Nd6 {[%emt 0:00:29]} 26. Rc7 {[%emt 0:00:07]} a5 {[%emt 0:07:50]} 27. Rc5 {[%emt 0:02:52]} Rb1+ {[%emt 0:07:57]} 28. Kg2 {[%emt 0:00:06]} Rb2 {[%emt 0:00:05]} 29. h3 {[%emt 0:16:19]} Kf7 {[%emt 0:10:11]} 30. g4 {[%emt 0:02:57]} Kf6 {[%emt 0:01:34]} 31. Kg3 {[%emt 0:00:08]} h5 {[%emt 0:01:18]} 32. gxh5 {[%emt 0:02:01]} f4+ {[%emt 0:02:46]} 33. exf4 {[%emt 0:05:24]} 1/2-1/2

[Event "Asian Continental-ch Open 2019"]
[Site "XingTai"]
[Date "2019.06.14"]
[Round "8.17"]
[White "Zeng, Chongsheng"]
[Black "Garcia, Jan Emmanuel"]
[Result "1-0"]
[ECO "C54"]
[WhiteElo "2561"]
[BlackElo "2413"]
[Annotator "ChessBase"]
[PlyCount "131"]
[EventDate "2019.06.06"]
[EventType "swiss"]
[EventCountry "CHN"]
[SourceTitle "playchess.com"]
[Source "ChessBase"]
[SourceQuality "1"]
[TimeControl "40/5400+30:1800+30"]

1. e4 {[%emt 0:00:00]} e5 {[%emt 0:00:00]} 2. Nf3 {[%emt 0:00:01]} Nc6 {[%emt 0:00:00]} 3. Bc4 {[%emt 0:00:02]} Bc5 {[%emt 0:00:01]} 4. c3 {[%emt 0:00:04]} Nf6 {[%emt 0:01:01]} 5. d3 {[%emt 0:00:05]} a6 {[%emt 0:01:02]} 6. a4 {[%emt 0:01:11]} d6 {[%emt 0:00:43]} 7. h3 {[%emt 0:00:07]} Ba7 {[%emt 0:01:16]} 8. O-O {[%emt 0:01:01]} O-O {[%emt 0:05:24]} 9. Re1 {[%emt 0:01:35]} Be6 {[%emt 0:01:50]} 10. Nbd2 {[%emt 0:00:30]} Re8 {[%emt 0:02:41]} 11. Bxe6 {[%emt 0:10:52]} fxe6 {[%emt 0:09:07]} 12. b4 {[%emt 0:00:34]} Rf8 {[%emt 0:01:38]} 13. b5 {[%emt 0:02:36]} Na5 {[%emt 0:20:03]} 14. d4 {[%emt 0:02:25]} exd4 {[%emt 0:05:19]} 15. cxd4 {[%emt 0:00:08]} Bb6 {[%emt 0:03:20]} 16. Ba3 {[%emt 0:09:27]} axb5 {[%emt 0:09:23]} 17. axb5 {[%emt 0:00:07]} Qd7 {[%emt 0:00:18]} 18. Rb1 {[%emt 0:03:31]} Nh5 {[%emt 0:02:18]} 19. Qc2 {[%emt 0:07:44]} e5 {[%emt 0:08:39]} 20. dxe5 {[%emt 0:06:48]} Nf4 {[%emt 0:00:22]} 21. Kf1 {[%emt 0:01:57]} Qe6 {[%emt 0:18:26]} 22. Rec1 {[%emt 0:26:59]} Qg6 {[%emt 0:02:05]} 23. Nh4 {[%emt 0:00:32]} Qh5 {[%emt 0:00:06]} 24. Ndf3 {[%emt 0:00:10]} Nxh3 {[%emt 0:01:20]} 25. exd6 {[%emt 0:00:02]} cxd6 {[%emt 0:03:52]} 26. Bxd6 {[%emt 0:00:18]} Nxf2 {[%emt 0:00:12]} 27. Bxf8 {[%emt 0:00:48]} Rxf8 {[%emt 0:00:01]} 28. Qa2+ {[%emt 0:00:20]} Kh8 {[%emt 0:00:10]} 29. Qe6 {[%emt 0:00:10]} Bd8 {[%emt 0:03:19]} 30. Rc8 {[%emt 0:06:33]} Ng4 {[%emt 0:00:28]} 31. Qd6 {[%emt 0:01:24]} Qe8 {[%emt 0:00:15]} 32. Nf5 {[%emt 0:01:12]} Rg8 {[%emt 0:00:35]} 33. Rd1 {[%emt 0:00:45]} Qxb5+ {[%emt 0:00:28]} 34. Qd3 {[%emt 0:01:27]} Qb6 {[%emt 0:00:44]} 35. N3d4 {[%emt 0:03:17]} Nc6 {[%emt 0:00:27]} 36. Rb1 {[%emt 0:06:49]} Qa7 {[%emt 0:00:15]} 37. Qb3 {[%emt 0:04:03]} Nxd4 {[%emt 0:00:27]} 38. Qxg8+ {[%emt 0:00:24]} Kxg8 {[%emt 0:00:02]} 39. Rxd8+ {[%emt 0:00:02]} Kf7 {[%emt 0:00:00]} 40. Rxb7+ {[%emt 0:00:00]} Qxb7 {[%emt 0:00:00]} 41. Nd6+ {[%emt 0:00:27]} Ke6 {[%emt 0:11:54]} 42. Nxb7 {[%emt 0:00:04]} Ke5 {[%emt 0:00:08]} 43. Nc5 {[%emt 0:02:04]} Nf6 {[%emt 0:02:38]} 44. Nd7+ {[%emt 0:07:06]} Kxe4 {[%emt 0:01:50]} 45. Nxf6+ {[%emt 0:00:02]} gxf6 {[%emt 0:00:01]} 46. Rh8 {[%emt 0:00:07]} f5 {[%emt 0:03:14]} 47. Rxh7 {[%emt 0:00:10]} f4 {[%emt 0:00:58]} 48. Rh5 {[%emt 0:00:56]} Nf5 {[%emt 0:00:30]} 49. Kf2 {[%emt 0:00:38]} Ne3 {[%emt 0:00:28]} 50. Rg5 {[%emt 0:00:19]} Nd1+ {[%emt 0:00:47]} 51. Kg1 {[%emt 0:00:21]} Ne3 {[%emt 0:00:28]} 52. Rg8 {[%emt 0:00:09]} Kf5 {[%emt 0:01:33]} 53. Kh2 {[%emt 0:00:43]} Ng4+ {[%emt 0:02:56]} 54. Kh3 {[%emt 0:00:02]} Ne5 {[%emt 0:00:56]} 55. Kh4 {[%emt 0:02:31]} Nd3 {[%emt 0:07:26]} 56. Rf8+ {[%emt 0:06:25]} Ke4 {[%emt 0:00:47]} 57. Kg5 {[%emt 0:00:54]} Ke3 {[%emt 0:00:58]} 58. Rd8 {[%emt 0:00:10]} Nc5 {[%emt 0:03:13]} 59. Kg4 {[%emt 0:00:09]} Kf2 {[%emt 0:00:33]} 60. Rd2+ {[%emt 0:00:23]} Ke3 {[%emt 0:00:20]} 61. Rd5 {[%emt 0:00:10]} Ne4 {[%emt 0:00:44]} 62. Re5 {[%emt 0:00:20]} Kd4 {[%emt 0:00:26]} 63. Kxf4 {[%emt 0:00:07]} Nf6 {[%emt 0:00:25]} 64. Re6 {[%emt 0:00:32]} Nd5+ {[%emt 0:00:12]} 65. Kf5 {[%emt 0:00:12]} Ne3+ {[%emt 0:00:20]} 66. Rxe3 {[%emt 0:00:02]} 1-0